fUST/lending_fUST_20250623
["ID","MTS","AMOUNT","RATE_DAILY","PERIOD"]
[367070601,1750645866120,-446.70746785,0.00022465,2]
[367070602,1750645866130,-2249.56,0.00022465,2]
[367070603,1750645866139,-787.02,0.00022465,2]
[367070604,1750645866148,-574.04,0.00022465,2]
[367070605,1750645866157,-460.0,0.00022465,2]
[367070606,1750645866166,-939.34,0.00022465,2]
[367070607,1750645866176,-460.0,0.00022465,2]
[367070608,1750645866185,-460.0,0.00022465,2]
[367070609,1750645866195,-480.76,0.00022465,2]
[367070610,1750645866204,-1115.52,0.00022465,2]
[367070611,1750645866217,-1026.53,0.00022465,2]
[367070612,1750645866228,-460.0,0.00022465,2]
[367070613,1750645866237,-460.0,0.00022465,2]
[367070614,1750645866247,-460.0,0.00022465,2]
[367070615,1750645866256,-460.0,0.00022465,2]
[367070616,1750645866266,-1110.03,0.00022465,2]
[367070617,1750645866276,-460.0,0.00022465,2]
[367070618,1750645866286,-460.0,0.00022465,2]
[367070619,1750645866295,-460.0,0.00022465,2]
[367070620,1750645866305,-460.0,0.00022465,2]
[367070621,1750645866315,-460.0,0.00022465,2]
[367070622,1750645866324,-460.0,0.00022465,2]
[367070623,1750645866334,-460.0,0.00022465,2]
[367070624,1750645866343,-460.0,0.00022465,2]
[367070625,1750645866352,-460.0,0.00022465,2]
[367070626,1750645866362,-460.0,0.00022465,2]
[367070627,1750645866371,-1436.46,0.00022465,2]
[367070628,1750645866381,-151.0,0.00022465,7]
[367070629,1750645866391,-193.336044,0.00022465,7]
[367070630,1750645866400,-460.0,0.00022465,2]
[367070631,1750645866409,-460.0,0.00022465,2]
[367070632,1750645866418,-460.0,0.00022465,2]
[367070633,1750645866428,-460.0,0.00022465,2]
[367070634,1750645866437,-460.0,0.00022465,2]
[367070635,1750645866447,-460.0,0.00022465,2]
[367070636,1750645866456,-460.0,0.00022465,2]
[367070637,1750645866465,-1249.1,0.00022465,2]
[367070638,1750645866474,-460.0,0.00022465,2]
[367070639,1750645866483,-500.0,0.00022465,2]
[367070640,1750645866492,-460.0,0.00022465,2]
[367070641,1750645866502,-460.0,0.00022465,2]
[367070642,1750645866511,-460.0,0.00022465,2]
[367070643,1750645866520,-460.0,0.00022465,2]
[367070644,1750645866530,-460.0,0.00022465,2]
[367070645,1750645866539,-1855.57,0.00022465,2]
[367070646,1750645866549,-461.55569093,0.00022465,2]
[367070647,1750645866558,-460.0,0.00022465,2]
[367070648,1750645866567,-460.0,0.00022465,2]
[367070649,1750645866577,-460.0,0.00022465,2]
[367070650,1750645866586,-980.7,0.00022465,2]
[367070651,1750645866595,-336.91053788,0.00022465,2]
[367070652,1750645866892,-56.10745857,0.00022465,2]
[367070653,1750645866901,-460.0,0.00022465,2]
[367070654,1750645866910,-460.0,0.00022465,2]
[367070655,1750645866920,-460.0,0.00022465,2]
[367070656,1750645866931,-460.0,0.00022465,2]
[367070657,1750645866941,-460.0,0.00022465,2]
[367070658,1750645866951,-460.0,0.00022465,2]
[367070659,1750645866961,-1195.92,0.00022465,2]
[367070660,1750645866972,-1372.37,0.00022465,2]
[367070661,1750645866982,-460.0,0.00022465,2]
[367070662,1750645866992,-824.93,0.00022465,2]
[367070663,1750645867002,-460.0,0.00022465,2]
[367070664,1750645867014,-1536.64,0.00022465,2]
[367070665,1750645867026,-460.0,0.00022465,2]
[367070666,1750645867034,-460.0,0.00022465,2]
[367070667,1750645867043,-460.0,0.00022465,2]
[367070668,1750645867055,-151.0,0.00022465,7]
[367070669,1750645867064,-151.0,0.00022465,7]
[367070670,1750645867074,-1106.97,0.00022465,2]
[367070671,1750645867083,-476.56,0.00022465,2]
[367070672,1750645867093,-955.741248,0.00022465,7]
[367070673,1750645867102,-955.741248,0.00022465,7]
[367070674,1750645867111,-955.741248,0.00022465,7]
[367070675,1750645867121,-955.741248,0.00022465,7]
[367070676,1750645867130,-955.741248,0.00022465,7]
[367070677,1750645867139,-955.741243,0.00022465,7]
[367070678,1750645867148,-460.0,0.00022465,2]
[367070679,1750645867158,-151.0,0.00022465,7]
[367070680,1750645867167,-151.0,0.00022465,7]
[367070681,1750645867176,-460.0,0.00022465,2]
[367070682,1750645867185,-439.01929933,0.00022465,2]
[367070683,1750645867195,-566.24,0.00022465,2]
[367070684,1750645867204,-2130.22,0.00022465,2]
[367070685,1750645867216,-460.0,0.00022465,2]
[367070686,1750645867225,-460.0,0.00022465,2]
[367070687,1750645867235,-460.0,0.00022465,2]
[367070688,1750645867244,-460.0,0.00022465,2]
[367070689,1750645867253,-3306.933896,0.00022465,7]
[367070690,1750645867264,-3306.933896,0.00022465,7]
[367070691,1750645867278,-3306.933896,0.00022465,7]
[367070692,1750645867288,-460.0,0.00022465,2]
[367070693,1750645867298,-3306.933896,0.00022465,7]
[367070694,1750645867308,-3306.933896,0.00022465,7]
[367070695,1750645867318,-3306.933905,0.00022465,7]
[367070696,1750645867327,-460.0,0.00022465,2]
[367070697,1750645867337,-850.29,0.00022465,2]
[367070698,1750645867347,-460.0,0.00022465,2]
[367070699,1750645867356,-460.0,0.00022465,2]
[367070700,1750645867366,-500.26,0.00022465,2]
[367070701,1750645867375,-520.51,0.00022465,2]
[367070702,1750645867385,-460.0,0.00022465,2]
[367070703,1750645867395,-460.0,0.00022465,2]
[367070704,1750645867404,-460.0,0.00022465,2]
[367070705,1750645867414,-460.0,0.00022465,2]
[367070706,1750645867423,-1607.62,0.00022465,2]
[367070707,1750645867432,-460.0,0.00022465,2]
[367070708,1750645867441,-1099.68,0.00022465,2]
[367070709,1750645867451,-151.0,0.00022465,7]
[367070710,1750645867460,-151.0,0.00022465,7]
[367070711,1750645867470,-478.66959338,0.00022465,2]
[367070712,1750645867479,-460.0,0.00022465,2]
[367070713,1750645867489,-460.0,0.00022465,2]
[367070714,1750645867499,-613.16,0.00022465,2]
[367070715,1750645867509,-460.0,0.00022465,2]
[367070716,1750645867519,-460.0,0.00022465,2]
[367070717,1750645867528,-460.0,0.00022465,2]
[367070718,1750645867538,-460.0,0.00022465,2]
[367070719,1750645867548,-478.15,0.00022465,2]
[367070720,1750645867558,-460.0,0.00022465,2]
[367070721,1750645867567,-460.0,0.00022465,2]
[367070722,1750645867576,-460.0,0.00022465,2]
[367070723,1750645867586,-460.0,0.00022465,2]
[367070724,1750645867595,-2151.5,0.00022465,2]
[367070725,1750645867605,-460.0,0.00022465,2]
[367070726,1750645867614,-680.76,0.00022465,2]
[367070727,1750645867624,-460.0,0.00022465,2]
[367070728,1750645867633,-3827.24,0.00022465,2]
[367070729,1750645867642,-460.0,0.00022465,2]
[367070730,1750645867652,-460.0,0.00022465,2]
[367070731,1750645867661,-460.0,0.00022465,2]
[367070732,1750645867671,-508.51,0.00022465,2]
[367070733,1750645867680,-5733.14,0.00022465,2]
[367070734,1750645867690,-460.0,0.00022465,2]
[367070735,1750645867699,-559.64810098,0.00022465,2]
[367070736,1750645867708,-460.0,0.00022465,2]
[367070737,1750645867718,-765.89,0.00022465,2]
[367070738,1750645867727,-987.73,0.00022465,2]
[367070739,1750645867737,-153.73400116,0.00022465,2]
[367070740,1750645867746,-460.0,0.00022465,2]
[367070741,1750645867755,-460.0,0.00022465,2]
[367070742,1750645867765,-460.0,0.00022465,2]
[367070743,1750645867774,-507.85309789,0.00022465,2]
[367070744,1750645867783,-460.0,0.00022465,2]
[367070745,1750645867793,-730.66,0.00022465,2]
[367070746,1750645867804,-460.0,0.00022465,2]
[367070747,1750645867813,-460.0,0.00022465,2]
[367070748,1750645867823,-151.0,0.00022465,7]
[367070749,1750645867832,-151.0,0.00022465,7]
[367070750,1750645867841,-1131.63,0.00022465,2]
[367070751,1750645867851,-535.09297378,0.00022465,2]
[367070752,1750645867860,-460.0,0.00022465,2]
[367070753,1750645867870,-460.0,0.00022465,2]
[367070754,1750645867880,-646.44,0.00022465,2]
[367070755,1750645867890,-460.0,0.00022465,2]
[367070756,1750645867900,-6983.22,0.00022465,2]
[367070757,1750645867909,-460.0,0.00022465,2]
[367070758,1750645867919,-460.0,0.00022465,2]
[367070759,1750645867929,-519.84,0.00022465,2]
[367070760,1750645867938,-463.66267277,0.00022465,2]
[367070761,1750645867948,-460.0,0.00022465,2]
[367070762,1750645867957,-460.0,0.00022465,2]
[367070763,1750645867966,-460.0,0.00022465,2]
[367070764,1750645867975,-460.0,0.00022465,2]
[367070765,1750645867984,-460.0,0.00022465,2]
[367070766,1750645867994,-764.34,0.00022465,2]
[367070767,1750645868003,-168.39623075,0.00022465,2]
[367070768,1750645868012,-945.7,0.00022465,2]
[367070769,1750645868022,-460.0,0.00022465,2]
[367070770,1750645868031,-460.0,0.00022465,2]
[367070771,1750645868040,-848.98,0.00022465,2]
[367070772,1750645868051,-460.0,0.00022465,2]
[367070773,1750645868060,-780.76,0.00022465,2]
[367070774,1750645868069,-774.05,0.00022465,2]
[367070775,1750645868079,-552.36,0.00022465,2]
[367070776,1750645868088,-2357.58,0.00022465,2]
[367070777,1750645868097,-364.7623491,0.00022465,2]
[367070778,1750645868107,-474.29,0.00022465,2]
[367070779,1750645868117,-460.0,0.00022465,2]
[367070780,1750645868126,-460.0,0.00022465,2]
[367070781,1750645868136,-460.0,0.00022465,2]
[367070782,1750645868145,-463.18,0.00022465,2]
[367070783,1750645868155,-461.82731804,0.00022465,2]
[367070784,1750645868165,-460.0,0.00022465,2]
[367070785,1750645868174,-460.0,0.00022465,2]
[367070786,1750645868183,-460.0,0.00022465,2]
[367070787,1750645868193,-574.21,0.00022465,2]
[367070788,1750645868202,-6510.75,0.00022465,2]
[367070789,1750645868214,-1303.4,0.00022465,2]
[367070790,1750645868224,-460.0,0.00022465,2]
[367070791,1750645868234,-460.0,0.00022465,2]
[367070792,1750645868244,-460.0,0.00022465,2]
[367070793,1750645868254,-5468.3,0.00022465,2]
[367070794,1750645868264,-462.21918114,0.00022465,2]
[367070795,1750645868273,-460.0,0.00022465,2]
[367070796,1750645868283,-460.0,0.00022465,2]
[367070797,1750645868292,-790.04,0.00022465,2]
[367070798,1750645868303,-460.0,0.00022465,2]
[367070799,1750645868313,-549.58439684,0.00022465,2]
[367070800,1750645868323,-460.0,0.00022465,2]
[367070801,1750645868332,-151.0,0.00022465,7]
[367070802,1750645868342,-460.0,0.00022465,2]
[367070803,1750645868351,-1286.35,0.00022465,2]
[367070804,1750645868360,-252.796361,0.00022465,7]
[367070805,1750645868369,-1733.76,0.00022465,2]
[367070806,1750645868378,-460.0,0.00022465,2]
[367070807,1750645868388,-252.796364,0.00022465,7]
[367070808,1750645868397,-460.0,0.00022465,2]
[367070809,1750645868407,-460.0,0.00022465,2]
[367070810,1750645868416,-771.37,0.00022465,2]
[367070811,1750645868425,-460.0,0.00022465,2]
[367070812,1750645868435,-460.0,0.00022465,2]
[367070813,1750645868444,-591.53,0.00022465,2]
[367070814,1750645868454,-460.0,0.00022465,2]
[367070815,1750645868463,-869.11,0.00022465,2]
[367070816,1750645868472,-657.46,0.00022465,2]
[367070817,1750645868481,-460.0,0.00022465,2]
[367070818,1750645868491,-533.04,0.00022465,2]
[367070819,1750645868500,-929.61,0.00022465,2]
[367070820,1750645868509,-1224.74,0.00022465,2]
[367070821,1750645868518,-1125.21,0.00022465,2]
[367070822,1750645868527,-460.0,0.00022465,2]
[367070823,1750645868537,-460.0,0.00022465,2]
[367070824,1750645868545,-811.56,0.00022465,2]
[367070825,1750645868556,-460.0,0.00022465,2]
[367070826,1750645868566,-460.0,0.00022465,2]
[367070827,1750645868576,-460.0,0.00022465,2]
[367070828,1750645868586,-1181.54,0.00022465,2]
[367070829,1750645868595,-460.0,0.00022465,2]
[367070830,1750645868605,-461.40108481,0.00022465,2]
[367070831,1750645868615,-694.28,0.00022465,2]
[367070832,1750645868624,-460.0,0.00022465,2]
[367070833,1750645868633,-777.86,0.00022465,2]
[367070834,1750645868643,-460.0,0.00022465,2]
[367070835,1750645868651,-460.0,0.00022465,2]
[367070836,1750645868661,-271.278913,0.00022465,7]
[367070837,1750645868670,-460.0,0.00022465,2]
[367070838,1750645868679,-2932.47,0.00022465,2]
[367070839,1750645868689,-271.278904,0.00022465,7]
[367070840,1750645868698,-872.7,0.00022465,2]
[367070841,1750645868707,-5065.01,0.00022465,2]
[367070842,1750645868717,-1067.18,0.00022465,2]
[367070843,1750645868727,-460.0,0.00022465,2]
[367070844,1750645868737,-2387.14,0.00022465,2]
[367070845,1750645868746,-1945.48,0.00022465,2]
[367070846,1750645868754,-460.0,0.00022465,2]
[367070847,1750645868764,-460.0,0.00022465,2]
[367070848,1750645868773,-492.02,0.00022465,2]
[367070849,1750645868782,-460.0,0.00022465,2]
[367070850,1750645868791,-460.0,0.00022465,2]
[367070851,1750645868800,-460.0,0.00022465,2]
[367070852,1750645868809,-7237.48,0.00022465,2]
[367070853,1750645868818,-756.04,0.00022465,2]
[367070854,1750645868827,-2180.77,0.00022465,2]
[367070855,1750645868836,-460.0,0.00022465,2]
[367070856,1750645868846,-460.0,0.00022465,2]
[367070857,1750645868854,-1835.93,0.00022465,2]
[367070858,1750645868863,-1439.69,0.00022465,2]
[367070859,1750645868872,-308.40799439,0.00022465,2]
[367070860,1750645868881,-582.81151817,0.00022465,2]
[367070861,1750645868891,-572.98,0.00022465,2]
[367070862,1750645868900,-460.0,0.00022465,2]
[367070863,1750645868909,-867.24,0.00022465,2]
[367070864,1750645868919,-1518.2,0.00022465,2]
[367070865,1750645868928,-9517.27,0.00022465,2]
[367070866,1750645868937,-536.2449509,0.00022465,2]
[367070867,1750645868946,-2827.83,0.00022465,2]
[367070868,1750645868955,-480.78,0.00022465,2]
[367070869,1750645868964,-2501.81,0.00022465,2]
[367070870,1750645868974,-460.0,0.00022465,2]
[367070871,1750645868983,-460.0,0.00022465,2]
[367070872,1750645868993,-460.0,0.00022465,2]
[367070873,1750645869002,-462.05439241,0.00022465,2]
[367070874,1750645869012,-460.0,0.00022465,2]
[367070875,1750645869021,-174.24116097,0.00022465,2]
[367070876,1750645869030,-330.767106,0.00022465,2]
[367070877,1750645869040,-460.0,0.00022465,2]
[367070878,1750645869049,-460.0,0.00022465,2]
[367070879,1750645869059,-710.07,0.00022465,2]
[367070880,1750645869069,-2972.5,0.00022465,2]
[367070881,1750645869078,-539.9,0.00022465,2]
[367070882,1750645869088,-865.09,0.00022465,2]
[367070883,1750645869097,-934.19,0.00022465,2]
[367070884,1750645869107,-460.0,0.00022465,2]
[367070885,1750645869116,-1351.47,0.00022465,2]
[367070886,1750645869125,-9313.66441496,0.00022465,2]
[367070887,1750645870156,-462.39,0.00021917,2]
[367070888,1750645870166,-462.39,0.00022191,2]
[367070889,1750645870175,-10169.78558504,0.00022465,2]
[367070890,1750645870185,-576.57,0.00022465,2]
[367070891,1750645870194,-2844.31,0.00022465,2]
[367070892,1750645870203,-460.0,0.00022465,2]
[367070893,1750645870214,-480.19,0.00022465,2]
[367070894,1750645870224,-705.74,0.00022465,2]
[367070895,1750645870233,-497.99,0.00022465,2]
[367070896,1750645870243,-460.0,0.00022465,2]
[367070897,1750645870252,-460.0,0.00022465,2]
[367070898,1750645870261,-3597.18,0.00022465,2]
[367070899,1750645870271,-1527.56,0.00022465,2]
[367070900,1750645870280,-460.0,0.00022465,2]
[367070901,1750645870289,-835.55,0.00022465,2]
[367070902,1750645870300,-460.0,0.00022465,2]
[367070903,1750645870309,-460.0,0.00022465,2]
[367070904,1750645870318,-703.91,0.00022465,2]
[367070905,1750645870327,-460.0,0.00022465,2]
[367070906,1750645870337,-460.0,0.00022465,2]
[367070907,1750645870346,-6424.06,0.00022465,2]
[367070908,1750645870356,-783.59,0.00022465,2]
[367070909,1750645870366,-460.0,0.00022465,2]
[367070910,1750645870375,-709.32,0.00022465,2]
[367070911,1750645870385,-1168.19,0.00022465,2]
[367070912,1750645870394,-4954.79,0.00022465,2]
[367070913,1750645870403,-604.54,0.00022465,2]
[367070914,1750645870412,-2123.68,0.00022465,2]
[367070915,1750645870422,-446.29670853,0.00022465,2]
[367070916,1750645870432,-460.0,0.00022465,2]
[367070917,1750645870441,-1193.12,0.00022465,2]
[367070918,1750645870451,-1075.23,0.00022465,2]
[367070919,1750645870460,-1368.1,0.00022465,2]
[367070920,1750645870470,-3195.8,0.00022465,2]
[367070921,1750645870481,-1080.01,0.00022465,2]
[367070922,1750645870490,-460.0,0.00022465,2]
[367070923,1750645870500,-460.0,0.00022465,2]
[367070924,1750645870509,-460.0,0.00022465,2]
[367070925,1750645870520,-460.0,0.00022465,2]
[367070926,1750645870529,-2998.49,0.00022465,2]
[367070927,1750645870539,-1149.91290749,0.00022465,2]
[367070928,1750645870980,-460.0,0.00021917,2]
[367070929,1750645870990,-460.000001,0.00021917,2]
[367070930,1750645870999,-460.0,0.00021917,2]
[367070931,1750645871008,-4099.85709251,0.00022465,2]
[367070932,1750645871018,-2205.71,0.00022465,2]
[367070933,1750645871027,-653.95,0.00022465,2]
[367070934,1750645871036,-460.0,0.00022465,2]
[367070935,1750645871045,-1763.31,0.00022465,2]
[367070936,1750645871055,-460.0,0.00022465,2]
[367070937,1750645871064,-500.0,0.00022465,2]
[367070938,1750645871074,-460.0,0.00022465,2]
[367070939,1750645871083,-460.0,0.00022465,2]
[367070940,1750645871093,-460.0,0.00022465,2]
[367070941,1750645871102,-327.72402622,0.00022465,2]
[367070942,1750645871111,-1271.72,0.00022465,2]
[367070943,1750645871121,-1151.2,0.00022465,2]
[367070944,1750645871130,-745.29,0.00022465,2]
[367070945,1750645871140,-932.79,0.00022465,2]
[367070946,1750645871149,-460.0,0.00022465,2]
[367070947,1750645871159,-1483.16,0.00022465,2]
[367070948,1750645871168,-460.0,0.00022465,2]
[367070949,1750645871177,-460.0,0.00022465,2]
[367070950,1750645871187,-767.96,0.00022465,2]
[367070951,1750645871196,-460.0,0.00022465,2]
[367070952,1750645871205,-8817.71,0.00022465,2]
[367070953,1750645871217,-283.33197926,0.00022465,2]
[367070954,1750645871226,-460.0,0.00022465,2]
[367070955,1750645871235,-464.04,0.00022465,2]
[367070956,1750645871244,-460.0,0.00022465,2]
[367070957,1750645871255,-1989.7,0.00022465,2]
[367070958,1750645871264,-1628.78,0.00022465,2]
[367070959,1750645871273,-460.0,0.00022465,2]
[367070960,1750645871283,-881.99,0.00022465,2]
[367070961,1750645871295,-826.19,0.00022465,2]
[367070962,1750645871305,-460.0,0.00022465,2]
[367070963,1750645871315,-818.97,0.00022465,2]
[367070964,1750645871324,-460.0,0.00022465,2]
[367070965,1750645871333,-460.0,0.00022465,2]
[367070966,1750645871342,-6905.28,0.00022465,2]
[367070967,1750645871352,-462.39,0.00022465,2]
[367070968,1750645871361,-500.0,0.00022473,2]
[367070969,1750645871371,-500.0,0.00022473,2]
[367070970,1750645871381,-500.0,0.00022473,2]
[367070971,1750645871391,-150.0,0.00022473,2]
[367070972,1750645871400,-150.0,0.00022473,2]
[367070973,1750645871409,-151.0,0.00022485,7]
[367070974,1750645871419,-868.531415,0.00022485,2]
[367070975,1750645871429,-868.53142,0.00022485,2]
[367070976,1750645871438,-170.260479,0.00022485,7]
[367070977,1750645871448,-170.260486,0.00022485,7]
[367070978,1750645871458,-228.156087,0.00022485,7]
[367070979,1750645871467,-228.156087,0.00022485,7]
[367070980,1750645871476,-1569.478401,0.00022485,7]
[367070981,1750645871486,-151.0,0.00022485,7]
[367070982,1750645871496,-198.074778,0.00022485,7]
[367070983,1750645871505,-198.074778,0.00022485,7]
[367070984,1750645871515,-292.038371,0.00022485,7]
[367070985,1750645871525,-266.404655,0.00022485,7]
[367070986,1750645871535,-266.404655,0.00022485,7]
[367070987,1750645871545,-733.772133,0.00022485,7]
[367070988,1750645871555,-151.0,0.00022485,7]
[367070989,1750645871565,-151.0,0.00022485,7]
[367070990,1750645871576,-4114.827426,0.00022485,7]
[367070991,1750645871586,-4114.827429,0.00022485,7]
[367070992,1750645871597,-1328.0,0.00022492,2]
[367070993,1750645871608,-2696.0,0.00022492,2]
[367070994,1750645871673,-160.0,0.00022499,3]
[367070995,1750645871685,-200.22,0.000225,2]
[367070996,1750645871694,-4489.53178788,0.00022517,2]
[367070997,1750645871704,-1328.0,0.0002252,2]
[367070998,1750645871714,-2696.0,0.0002252,2]
[367070999,1750645871724,-1000.0,0.00022521,2]
[367071000,1750645871734,-1000.0,0.00022521,2]
[367071001,1750645871744,-501.22541628,0.00022521,2]
[367071002,1750645871753,-362.30481107,0.00022521,2]
[367071003,1750645871763,-1002.70267452,0.00022521,2]
[367071004,1750645871773,-1016.46027025,0.00022521,2]
[367071005,1750645871783,-501.11985655,0.00022521,2]
[367071006,1750645871792,-500.7826397,0.00022521,2]
[367071007,1750645871802,-1000.0,0.00022521,2]
[367071008,1750645871812,-500.0,0.00022521,2]
[367071009,1750645871821,-993.82889603,0.00022521,2]
[367071010,1750645871831,-1001.0680781,0.00022521,2]
[367071011,1750645871842,-1000.0,0.00022521,2]
[367071012,1750645871851,-877.53360233,0.00022521,2]
[367071013,1750645871861,-616.05065136,0.00022521,2]
[367071014,1750645871871,-1000.0,0.00022521,2]
[367071015,1750645871881,-1000.0,0.00022521,2]
[367071016,1750645871891,-1000.0,0.00022521,2]
[367071017,1750645871900,-1000.0,0.00022521,2]
[367071018,1750645871910,-1000.0,0.00022521,2]
[367071019,1750645871919,-289.35315964,0.00022521,2]
[367071020,1750645871929,-1000.0,0.00022521,2]
[367071021,1750645871938,-1000.0,0.00022521,2]
[367071022,1750645871947,-1000.0,0.00022521,2]
[367071023,1750645871957,-1000.65169817,0.00022521,2]
[367071024,1750645871967,-1000.0,0.00022521,2]
[367071025,1750645871976,-1000.0,0.00022521,2]
[367071026,1750645871985,-1000.0,0.00022521,2]
[367071027,1750645871994,-1046.01582314,0.00022521,2]
[367071028,1750645872004,-1000.0,0.00022521,2]
[367071029,1750645872014,-723.81016481,0.00022521,2]
[367071030,1750645872023,-1001.20885315,0.00022521,2]
[367071031,1750645872033,-503.03794803,0.00022521,2]
[367071032,1750645872042,-1000.0,0.00022521,2]
[367071033,1750645872052,-1000.0,0.00022521,2]
[367071034,1750645872061,-1000.0,0.00022521,2]
[367071035,1750645872071,-1000.0,0.00022521,2]
[367071036,1750645872080,-691.16104028,0.00022521,2]
[367071037,1750645872090,-326.38434502,0.00022521,2]
[367071038,1750645872099,-1000.0,0.00022521,2]
[367071039,1750645872109,-612.84511257,0.00022521,2]
[367071040,1750645872119,-1001.42112108,0.00022521,2]
[367071041,1750645872129,-1000.0,0.00022521,2]
[367071042,1750645872140,-160.526161,0.00022547,7]
[367071043,1750645872151,-1346.37468814,0.00022547,2]
[367071044,1750645872161,-2696.65338087,0.00022547,2]
[367071045,1750645872173,-160.0,0.00022583,4]
[367071046,1750645872183,-158.292417,0.00022589,7]
[367071047,1750645872193,-2618.79853803,0.0002259,7]
[367071048,1750645872203,-160.0,0.00022607,3]
[367071049,1750645872214,-846.53928378,0.00022607,3]
[367071050,1750645872226,-12553.69357174,0.00022607,3]
[367071051,1750645872235,-213.63163053,0.0002261,3]
[367071052,1750645872245,-151.0,0.00022617,3]
[367071053,1750645872254,-151.0,0.00022617,3]
[367071054,1750645872264,-151.0,0.00022617,3]
[367071055,1750645872273,-1748.0,0.00022617,3]
[367071056,1750645872283,-151.0,0.00022617,3]
[367071057,1750645872293,-1748.0,0.00022617,3]
[367071058,1750645872302,-1748.0,0.00022617,3]
[367071059,1750645872312,-1748.0,0.00022617,3]
[367071060,1750645872322,-1748.0,0.00022617,3]
[367071061,1750645872331,-1748.0,0.00022617,3]
[367071062,1750645872340,-1748.0,0.00022617,3]
[367071063,1750645872349,-1748.0,0.00022617,3]
[367071064,1750645872359,-317.0,0.00022617,3]
[367071065,1750645872369,-1748.0,0.00022617,3]
[367071066,1750645872378,-317.0,0.00022617,3]
[367071067,1750645872387,-1748.0,0.00022617,3]
[367071068,1750645872397,-317.0,0.00022617,3]
[367071069,1750645872406,-1748.0,0.00022617,3]
[367071070,1750645872418,-317.0,0.00022617,3]
[367071071,1750645872427,-1748.0,0.00022617,3]
[367071072,1750645872436,-317.0,0.00022617,3]
[367071073,1750645872446,-1748.0,0.00022617,3]
[367071074,1750645872455,-317.0,0.00022617,3]
[367071075,1750645872464,-1748.0,0.00022617,3]
[367071076,1750645872474,-317.0,0.00022617,3]
[367071077,1750645872483,-1748.0,0.00022617,3]
[367071078,1750645872493,-1748.0,0.00022617,3]
[367071079,1750645872502,-1748.0,0.00022617,3]
[367071080,1750645872512,-1748.0,0.00022617,3]
[367071081,1750645872522,-1748.0,0.00022617,3]
[367071082,1750645872534,-1748.0,0.00022617,3]
[367071083,1750645872544,-524.09497732,0.0002262,3]
[367071084,1750645872553,-160.0,0.00022666,5]
[367071085,1750645872564,-151.0,0.00022675,7]
[367071086,1750645872574,-151.0,0.00022675,7]
[367071087,1750645872583,-3000.0,0.000227,2]
[367071088,1750645872595,-3000.0,0.000227,2]
[367071089,1750645872607,-700.0,0.00022709,2]
[367071090,1750645872617,-3000.0,0.0002271,2]
[367071091,1750645872626,-3000.0,0.0002271,2]
[367071092,1750645872636,-2015.08598756,0.0002272,2]
[367071093,1750645954146,150.0,0.0002,2]
[367071094,1750646063056,500.0,0.00025,30]
[367071095,1750646112397,3000.0,0.00025,30]
[367071096,1750646627385,659.62897901,0.00025,120]
[367071098,1750646737118,-337.43262059,0.000209,2]
[367071099,1750646832091,-2133.02908305,0.000209,2]
[367071100,1750646854088,-345.41829636,0.000209,2]
[367071101,1750646854110,-193.308086,0.00020912,2]